lending/lending_fUSD_20250317
["ID","MTS","AMOUNT","RATE_DAILY","PERIOD"]
[356302983,1742238632405,-551.64,9.932e-05,2]
[356302984,1742238632415,-1429.0,9.932e-05,2]
[356302985,1742238632424,-907.0,9.932e-05,2]
[356302986,1742238632435,-4080.0,9.932e-05,2]
[356302988,1742238632444,-1271.0,9.932e-05,2]
[356302990,1742238632454,-151.0,9.932e-05,2]
[356302992,1742238632463,-1013.0,9.932e-05,2]
[356302993,1742238632473,-3935.0,9.932e-05,2]
[356302995,1742238632485,-151.516,9.979e-05,2]
[356302997,1742238632497,-277.308,9.979e-05,2]
[356302999,1742238632507,-233.0,9.979e-05,2]
[356303001,1742238632518,-150.0,9.979e-05,2]
[356303003,1742238632528,-260.96,9.979e-05,2]
[356303005,1742238632537,-161.183,9.979e-05,2]
[356303006,1742238632546,-272.472,9.979e-05,2]
[356303007,1742238632556,-150.0,9.979e-05,2]
[356303008,1742238632565,-281.651,9.979e-05,2]
[356303009,1742238632574,-169.128,9.979e-05,2]
[356303010,1742238632583,-245.67,9.979e-05,2]
[356303011,1742238632593,-180.765,9.979e-05,2]
[356303012,1742238632602,-175.66,9.979e-05,2]
[356303013,1742238632611,-152.554,9.979e-05,2]
[356303014,1742238632620,-2034.0,9.979e-05,2]
[356303015,1742238632630,-1232.044,9.979e-05,2]
[356303016,1742238632642,-1419.0,9.979e-05,2]
[356303017,1742238632657,-571.0,9.979e-05,2]
[356303018,1742238632667,-641.0,9.979e-05,2]
[356303019,1742238632676,-658.69559933,9.979e-05,2]
[356303020,1742238632688,-128.30440067,9.979e-05,2]
[356303021,1742238632697,-1520.18591309,9.98e-05,2]
[356303022,1742238632720,-445.61213266,9.98e-05,2]
[356303029,1742238638005,-2632.5,9.804e-05,2]
[356303030,1742238638059,-829.79721531,9.804e-05,2]
[356303031,1742238638070,-895.19101635,9.804e-05,2]
[356303133,1742238640214,-276.8205,9.804e-05,2]
[356303134,1742238640425,-355.87439998,9.804e-05,2]
[356303192,1742238645977,-25009.81686836,9.804e-05,2]
[356303193,1742238645987,-3563.98628478,9.804e-05,2]
[356303194,1742238645996,-21943.36345991,9.9e-05,2]
[356303228,1742238673632,885.82693264,8.219e-05,2]
[356303229,1742238673805,41.67306736,8.219e-05,2]
[356303230,1742239002897,161.05,9.148e-05,2]
[356303231,1742239163782,-459.8234,9.799e-05,2]
[356303232,1742239163810,-1389.2168,9.799e-05,2]
[356303233,1742239163837,-151.4083,9.799e-05,2]
[356303234,1742239163866,-2275.2881,9.8e-05,2]
[356303235,1742239163893,-124.2634,9.898e-05,2]
[356303239,1742239367432,1000.0,9.108e-05,2]
[356303244,1742239561672,185.85,9.094e-05,2]
[356303257,1742239789068,353.31,9.069e-05,2]
[356303792,1742239838106,-2244.5651,9.898e-05,2]
[356303794,1742239838116,-300.0,9.898e-05,2]
[356303795,1742239838126,-448.8729,9.898e-05,2]
[356303797,1742239838135,-655.07715217,9.898e-05,2]
[356303801,1742239838163,-470.65944783,9.898e-05,2]
[356303803,1742239838174,-746.9761321,9.899e-05,2]
[356303809,1742239838216,-602.48168055,9.899e-05,2]
[356303811,1742239838229,-949.82050932,9.899e-05,2]
[356303813,1742239838240,-1200.0,9.899e-05,2]
[356303828,1742239838382,-921.55,9.899e-05,2]
[356304022,1742239840341,-192.50377803,9.899e-05,2]
[356304024,1742239840351,-220.90122197,9.899e-05,2]
[356304030,1742239840396,-625.42636932,9.899e-05,2]
[356304036,1742239840451,-403.67240871,9.899e-05,2]
[356304038,1742239840461,-419.9389,9.899e-05,2]
[356304040,1742239840470,-2013.76928289,9.9e-05,2]
[356304042,1742239840482,-637.29900002,9.9e-05,2]
[356304046,1742239840506,-1099.24815,9.9e-05,2]
[356304048,1742239840517,-26921.90199037,9.9e-05,2]
[356304059,1742239840614,-8316.62570012,9.9e-05,2]
[356304061,1742239840623,-150.0,9.976e-05,2]
[356304063,1742239840633,-776.767,9.977e-05,2]
[356304065,1742239840642,-787.0,9.977e-05,2]
[356304067,1742239840651,-541.0,9.977e-05,2]
[356304069,1742239840661,-1271.0,9.977e-05,2]
[356304071,1742239840671,-1429.0,9.977e-05,2]
[356304073,1742239840680,-4080.0,9.977e-05,2]
[356304075,1742239840690,-907.0,9.977e-05,2]
[356304077,1742239840699,-301.941,9.977e-05,2]
[356304079,1742239840708,-2032.0,9.977e-05,2]
[356304081,1742239840717,-500.0,9.979e-05,2]
[356304083,1742239840726,-219.9862259,9.979e-05,2]
[356304085,1742239840735,-17759.88335344,9.98e-05,2]
[356304087,1742239840744,-2459.08772394,9.989e-05,2]
[356304089,1742239840754,-5362.36709636,9.99e-05,2]
[356304091,1742239840763,-151.0,9.99e-05,2]
[356304093,1742239840775,-168.37846387,9.99e-05,2]
[356304095,1742239840785,-1407.5984005,9.993e-05,2]
[356304097,1742239840794,-951.35738041,9.996e-05,2]
[356304099,1742239840803,-500.0,9.998e-05,2]
[356304101,1742239840812,-185.33576729,9.998e-05,2]
[356304103,1742239840821,-310.00007756,9.998e-05,2]
[356304105,1742239840830,-160.61126436,9.998e-05,2]
[356304107,1742239840839,-500.0,9.998e-05,2]
[356304109,1742239840849,-2052.59,9.998e-05,2]
[356304111,1742239840859,-151.0,9.998e-05,2]
[356304113,1742239840868,-151.0,9.998e-05,2]
[356304115,1742239840878,-151.0,9.998e-05,2]
[356304117,1742239840887,-151.0,9.998e-05,2]
[356304119,1742239840897,-151.0,9.998e-05,2]
[356304121,1742239840906,-151.0,9.998e-05,2]
[356304123,1742239840916,-151.0,9.998e-05,2]
[356304125,1742239840925,-151.0,9.998e-05,2]
[356304127,1742239840935,-193.072375,9.998e-05,2]
[356304129,1742239840944,-151.0,9.998e-05,2]
[356304131,1742239840954,-151.0,9.998e-05,2]
[356304133,1742239840963,-348.483988,9.998e-05,2]
[356304135,1742239840972,-348.483988,9.998e-05,2]
[356304137,1742239840982,-151.0,9.998e-05,2]
[356304139,1742239840992,-151.0,9.998e-05,2]
[356304141,1742239841001,-151.0,9.998e-05,2]
[356304143,1742239841011,-151.0,9.998e-05,2]
[356304145,1742239841020,-193.84,9.998e-05,2]
[356304147,1742239841030,-151.0,9.998e-05,2]
[356304149,1742239841040,-151.0,9.998e-05,2]
[356304151,1742239841050,-460.83504017,9.998e-05,2]
[356304153,1742239841059,-99234.05634672,9.999e-05,2]
[356304159,1742239841111,-2656.70605,9.999e-05,2]
[356304716,1742239846492,-336.14279531,9.999e-05,2]
[356304729,1742239846601,-4217.55,9.999e-05,2]
[356304827,1742239857063,1310.9120015,9.998e-05,3]
[356304828,1742239857457,300.0,9.3e-05,3]
[356304829,1742239859572,700.0,9.4e-05,3]
[356304830,1742239861710,1000.0,9.5e-05,3]
[356304831,1742239864002,1400.0,9.6e-05,3]
[356304832,1742239865859,1800.0,9.7e-05,3]
[356304833,1742239867960,300.0,9.8e-05,3]
[356304834,1742239870078,300.0,9.9e-05,3]
[356304835,1742239872194,300.0,0.0001,3]
[356304836,1742240125382,3286.08,9.155e-05,2]
[356304837,1742240180087,1037.1,8.219e-05,2]
[356304838,1742240213452,314.64,9.164e-05,2]
[356304840,1742240313192,216.41,9.134e-05,2]
[356304841,1742240340361,2000.0,9.134e-05,2]
[356304842,1742240506145,213.11,9.094e-05,2]
[356304843,1742240567273,1500.0,9.156e-05,2]
[356304844,1742240581782,1000.0,9.14e-05,2]
[356304845,1742240645928,507.91,9.094e-05,2]
[356304846,1742240673483,250.0,9.094e-05,2]
[356304847,1742240702469,248.51,9.057e-05,2]
[356304848,1742240758459,588.27,9.022e-05,2]
[356304849,1742240810724,150.0,9.562e-05,7]
[356304850,1742240819754,202.47,9.031e-05,2]
[356304856,1742240904692,160.27,9.094e-05,2]
[356304857,1742240904904,160.27,9.118e-05,2]
[356304858,1742240905114,160.27,9.142e-05,2]
[356304859,1742240905628,160.27,9.166e-05,2]
[356304860,1742240905846,160.27,9.19e-05,2]
[356304861,1742240906054,160.27,9.214e-05,2]
[356304862,1742240906254,160.27,9.238e-05,2]
[356304863,1742240906491,160.27,9.262e-05,2]
[356304864,1742240906707,160.27,9.286e-05,2]
[356304865,1742240907119,160.27,9.309e-05,2]
[356304866,1742240907433,160.27,9.333e-05,2]
[356304867,1742240907637,160.27,9.357e-05,2]
[356304868,1742240907852,160.27,9.381e-05,2]
[356304869,1742240908069,160.27,9.405e-05,2]
[356304870,1742240908548,160.27,9.429e-05,2]
[356304871,1742240908744,160.27,9.453e-05,2]
[356304872,1742240908980,160.27,9.477e-05,2]
[356304873,1742240909203,160.27,9.501e-05,2]
[356304874,1742240909594,160.27,9.525e-05,2]
[356304875,1742240909802,160.27,9.549e-05,2]
[356304876,1742240933556,-169.8051057,9.699e-05,2]
[356304877,1742240933580,-131.18524238,9.729e-05,2]
[356304878,1742240934697,-169.8051057,9.729e-05,2]
[356304879,1742240943249,-150.0,9.729e-05,2]
[356304880,1742240966295,-151.47733756,9.699e-05,2]
[356304881,1742240974236,15578.45,9.051e-05,2]
[356304882,1742240993895,-18.32776824,9.699e-05,2]
[356304883,1742240993919,-133.14956932,9.729e-05,2]
[356304889,1742241032377,-169.8051058,9.699e-05,2]
[356304890,1742241032387,-415.8600826,9.729e-05,2]
[356304891,1742241032396,-449.90707052,9.73e-05,2]
[356304892,1742241032408,-150.0,9.747e-05,2]
[356304893,1742241032418,-150.0,9.788e-05,2]
[356304894,1742241032428,-131.81193487,9.794e-05,2]
[356304895,1742241032440,-18.18806513,9.794e-05,2]
[356304896,1742241032451,-150.0,9.819e-05,2]
[356304897,1742241032461,-347.18905477,9.827e-05,2]
[356304898,1742241032470,-150.0,9.852e-05,2]
[356304899,1742241032480,-303.76871179,9.853e-05,2]
[356304900,1742241032489,-152.46402968,9.878e-05,2]
[356304901,1742241032499,-62.37374737,9.899e-05,2]
[356304902,1742241032511,-1029.29698763,9.899e-05,2]
[356304903,1742241032788,-652.44551923,9.899e-05,2]
[356304928,1742241033020,-1267.1695585,9.899e-05,2]
[356305245,1742241036376,894.02,9.086e-05,2]
[356305453,1742241038396,-493.97951791,9.899e-05,2]
[356305455,1742241038409,-932.58255358,9.899e-05,2]
[356305459,1742241038434,-16215.27841578,9.899e-05,2]
[356305461,1742241038447,-3309.2831,9.899e-05,2]
[356305463,1742241038457,-1014.0,9.9e-05,2]
[356305465,1742241038468,-193.87681956,9.901e-05,2]
[356305467,1742241038477,-150.0,9.924e-05,2]
[356305469,1742241038487,-150.0,9.965e-05,2]
[356305471,1742241038496,-152.15756789,9.973e-05,2]
[356305473,1742241038505,-150.0,9.978e-05,2]
[356305475,1742241038514,-150.0,9.982e-05,2]
[356305477,1742241038523,-150.0,9.986e-05,2]
[356305479,1742241038533,-571.0,9.987e-05,2]
[356305481,1742241038542,-641.0,9.987e-05,2]
[356305483,1742241038551,-1419.0,9.987e-05,2]
[356305485,1742241038561,-785.0,9.987e-05,2]
[356305487,1742241038571,-698.334,9.987e-05,2]
[356305489,1742241038580,-1427.0,9.987e-05,2]
[356305491,1742241038590,-541.0,9.987e-05,2]
[356305493,1742241038599,-1269.0,9.987e-05,2]
[356305495,1742241038608,-898.16,9.987e-05,2]
[356305496,1742241038617,-3930.0,9.987e-05,2]
[356305497,1742241038626,-151.0,9.987e-05,2]
[356305498,1742241038635,-462.89652143,9.993e-05,2]
[356305499,1742241038644,-1427.7571138,9.993e-05,2]
[356305500,1742241038653,-5993.626303,9.997e-05,2]
[356305501,1742241038662,-345.62628012,9.998e-05,2]
[356305502,1742241038671,-151.0,9.998e-05,2]
[356305503,1742241038684,-151.0,9.998e-05,2]
[356305504,1742241038693,-1967.06,9.998e-05,2]
[356305505,1742241038702,-312.42788505,9.998e-05,2]
[356305506,1742241038714,-217.00005429,9.998e-05,2]
[356305507,1742241038724,-500.0,9.998e-05,2]
[356305508,1742241038734,-126583.87582367,9.999e-05,2]
[356305685,1742241040418,-1497.4590548,9.999e-05,2]
[356305698,1742241040540,-248.88310112,9.999e-05,2]
[356305708,1742241040628,-370.444,9.999e-05,2]
[356305725,1742241040793,-43326.489366,9.999e-05,2]
[356306301,1742241046488,-978.10742997,9.987e-05,2]
[356306314,1742241046595,-135.89257003,9.987e-05,2]
[356306316,1742241046605,-152.68636739,9.999e-05,2]
[356306972,1742241076417,400.0,9.3e-05,3]
[356306973,1742241078520,800.0,9.4e-05,3]
[356306974,1742241080629,1200.0,9.5e-05,3]
[356306975,1742241082730,1600.0,9.6e-05,3]
[356306976,1742241084823,2000.0,9.7e-05,3]
[356306977,1742241086918,400.0,9.8e-05,3]
[356306978,1742241089024,400.0,9.9e-05,3]
[356306979,1742241091115,400.0,0.0001,3]
[356306980,1742241110314,176.09,9.517e-05,2]
[356306981,1742241250292,23900.0,9.094e-05,2]
[356306983,1742241378921,1505.43817474,9.99e-05,10]
[356306984,1742241521266,985.24,8.219e-05,2]
[356306985,1742241574118,213.11,9.087e-05,2]
[356306986,1742241797454,1000.0,9.094e-05,2]
[356306987,1742241900137,-150.0,9.641e-05,2]
[356306988,1742241900160,-250.0,9.652e-05,2]
[356306989,1742241900183,-1000.0,9.8e-05,2]
[356306990,1742241900208,-150.0,9.806e-05,2]
[356306991,1742241900231,-201.37493341,9.808e-05,2]
[356306992,1742241905275,-200.0,9.832e-05,2]
[356306993,1742241917162,-800.0,9.832e-05,2]
[356306994,1742241917185,-170.4,9.832e-05,2]
[356306995,1742241917208,-79.6,9.834e-05,2]
[356306996,1742241918295,-70.4,9.834e-05,2]
[356306997,1742241918317,-79.6,9.837e-05,2]
[356306998,1742241931208,-151.97251927,9.837e-05,2]
[356306999,1742241932347,-551.33607008,9.837e-05,2]
[356307002,1742242011887,151.59,9.018e-05,2]
[356307003,1742242022012,-188.8092916,9.699e-05,2]
[356307004,1742242022041,-107.88211905,9.771e-05,2]
[356307005,1742242028460,-188.8092916,9.699e-05,2]
[356307006,1742242052085,-38.8092918,9.699e-05,2]
[356307007,1742242052111,-42.11788095,9.771e-05,2]
[356307008,1742242052136,-107.88211885,9.771e-05,2]
[356307009,1742242052750,9999.0,0.00022,120]
[356307010,1742242097450,282.64,9.042e-05,2]
[356307014,1742242231504,-142.11788115,9.771e-05,2]
[356307015,1742242231514,-336.19800271,9.8e-05,2]
[356307016,1742242231610,-663.80199729,9.8e-05,2]
[356307017,1742242231619,-201.37493341,9.842e-05,2]
[356307018,1742242231628,-255.0762,9.844e-05,2]
[356307019,1742242231637,-979.7468713,9.845e-05,2]
[356307020,1742242231648,-20.2531287,9.845e-05,2]
[356307021,1742242231657,-150.0,9.87e-05,2]
[356307022,1742242231666,-150.0,9.872e-05,2]
[356307023,1742242231675,-150.0,9.873e-05,2]
[356307024,1742242231684,-137.4968713,9.893e-05,2]
[356307025,1742242231715,-51.82108428,9.893e-05,2]
[356307026,1742242231724,-300.0,9.899e-05,2]
[356307027,1742242231733,-400.37891571,9.9e-05,2]
[356307028,1742242231822,-41.73108429,9.9e-05,2]
[356307029,1742242231831,-518.66,9.9e-05,2]
[356307030,1742242231840,-348.58251143,9.9e-05,2]
[356307559,1742242237398,-503.68209231,9.9e-05,2]
[356307598,1742242237762,-661.73539626,9.9e-05,2]
[356307600,1742242237771,-1000.0,9.925e-05,2]
[356307602,1742242237781,-150.0,9.933e-05,2]
[356307604,1742242237791,-201.37493341,9.944e-05,2]
[356307606,1742242237800,-150.0,9.954e-05,2]
[356307608,1742242237809,-151.0,9.971e-05,2]
[356307610,1742242237819,-1114.0,9.971e-05,2]
[356307612,1742242237828,-150.0,9.987e-05,2]
[356307614,1742242237838,-150.0,9.987e-05,2]
[356307616,1742242237847,-150.0,9.987e-05,2]
[356307618,1742242237857,-171.235,9.987e-05,2]
[356307620,1742242237866,-183.40467033,9.987e-05,2]
[356307777,1742242239535,-554.16732967,9.987e-05,2]
[356307779,1742242239545,-294.67025228,9.987e-05,2]
[356307790,1742242239642,-346.32974772,9.987e-05,2]
[356307792,1742242239652,-571.0,9.987e-05,2]
[356307794,1742242239662,-151.97251927,9.992e-05,2]
[356307796,1742242239672,-1139.7178119,9.993e-05,2]
[356307798,1742242239682,-49.5093905,9.993e-05,2]
[356307801,1742242239699,-145.7538361,9.993e-05,2]
[356307803,1742242239709,-150.0,9.997e-05,2]
[356307805,1742242239718,-568.69951953,9.997e-05,2]
[356307807,1742242239728,-35.87665926,9.997e-05,2]
[356307822,1742242239864,-116.02337874,9.997e-05,2]
[356307824,1742242239874,-150.0,9.997e-05,2]
[356307826,1742242239884,-122.23162126,9.998e-05,2]
[356307881,1742242240404,181.92,0.00016493,30]
[356308290,1742242244289,-136.98808883,9.998e-05,2]
[356308292,1742242244299,-434.37140896,9.998e-05,2]
[356308294,1742242244310,-952.3043937,9.998e-05,2]
[356308444,1742242245847,-1800.61743629,9.998e-05,2]
[356308959,1742242415652,151.031805,0.00022,120]
[356308960,1742242422072,151.031805,0.00022,120]
[356308961,1742242422903,151.031805,0.00022,120]
[356308962,1742242424304,151.031805,0.00022,120]
[356308963,1742242425270,151.031805,0.00022,120]
[356308964,1742242507869,169.031805,0.00022,120]
[356308965,1742242516942,2000.0,9.467e-05,2]
[356308967,1742242645058,21425.38,9.147e-05,2]
[356308968,1742242703129,162.73,9.161e-05,2]
[356308969,1742242732187,935.97,8.219e-05,2]
[356308970,1742242740750,200.0,9.161e-05,2]
[356308971,1742242750287,295.04,9.182e-05,2]
[356308973,1742242869654,-300.0,9.698e-05,2]
[356308974,1742242869680,-5360.19720564,9.699e-05,2]
[356308975,1742242869707,-250.0,9.7e-05,2]
[356308976,1742242869733,-3231.80279436,9.7e-05,2]
[356308977,1742242903953,-526.7,9.7e-05,2]
[356308978,1742242928966,821.3,8.897e-05,2]
[356308980,1742243091702,1000.0,8.881e-05,2]
[356308981,1742243102664,848.64,8.883e-05,2]
[356308982,1742243129372,181.64,9.15e-05,2]
[356308983,1742243144019,195.1,8.884e-05,2]
[356308984,1742243156442,1500.0,8.884e-05,2]
[356308986,1742243259063,342.31,8.881e-05,2]
[356308987,1742243306199,181.92,0.00016493,30]
[356308988,1742243323247,-1701.89515222,9.69e-05,2]
[356308989,1742243323273,-250.0,9.694e-05,2]
[356308990,1742243323300,-250.0,9.697e-05,2]
[356308992,1742243323326,-150.0,9.698e-05,2]
[356308994,1742243323352,-398.08966367,9.699e-05,2]
[356308995,1742243323378,-427.04783243,9.699e-05,2]
[356308997,1742243323406,-3095.60065001,9.7e-05,2]
[356308999,1742243323440,-6272.63329833,9.7e-05,2]
[356309000,1742243323471,-6272.63329833,9.7e-05,2]
[356309001,1742243323515,-6272.63329833,9.7e-05,2]
[356309002,1742243323548,-6272.63329833,9.7e-05,2]
[356309003,1742243323589,-6272.63329833,9.7e-05,2]
[356309004,1742243323627,-6272.63329833,9.7e-05,2]
[356309005,1742243323660,-6272.63329833,9.7e-05,2]
[356309006,1742243323693,-6272.63329833,9.7e-05,2]
[356309007,1742243323724,-6272.63329833,9.7e-05,2]
[356309008,1742243323757,-6272.63329833,9.7e-05,2]
[356309009,1742243323809,-840.68061438,9.7e-05,2]
[356309010,1742243323847,-6272.63329833,9.7e-05,2]
[356309011,1742243348141,-300.0,9.699e-05,2]
[356309012,1742243348170,-7494.87890222,9.7e-05,2]
[356309015,1742243348220,-7794.87890222,9.7e-05,2]
[356309016,1742243348254,-6934.86611731,9.7e-05,2]
[356309018,1742243357679,150.0,9.562e-05,7]
[356309023,1742243379909,250.0,8.888e-05,2]
[356309024,1742243386452,3388.37720564,9.4e-05,2]
[356309026,1742243398305,-892.7955379,9.599e-05,2]
[356309036,1742243431816,-56.8713621,9.599e-05,2]
[356309037,1742243431825,-250.0,9.65e-05,2]
[356309038,1742243431972,-150.0,9.699e-05,2]
[356309039,1742243431984,-320.28587432,9.699e-05,2]
[356309040,1742243431994,-223.24076358,9.7e-05,2]
[356309041,1742243432005,-591.826501,9.7e-05,2]
[356309046,1742243432122,-512.41105995,9.7e-05,2]
[356309592,1742243437751,-609.06409376,9.7e-05,2]
[356309595,1742243437774,-0.29261633,9.7e-05,2]
[356309598,1742243437786,-4214.4,9.7e-05,2]
[356309813,1742243439978,-522.55182718,9.7e-05,2]
[356310140,1742243443191,-4520.74374458,9.7e-05,2]
[356310236,1742243444228,-3408.16886283,9.7e-05,2]
[356310238,1742243444240,-685.0,9.7e-05,2]
[356310242,1742243444266,-1264.6702155,9.7e-05,2]
[356310405,1742243445776,-1913.63259836,9.7e-05,2]
[356310428,1742243445992,-485.08775999,9.7e-05,2]
[356311720,1742243495422,157.06,8.888e-05,2]
[356311722,1742243899582,295.04,8.9e-05,2]
[356311723,1742243910894,651.414,9.505e-05,2]
[356311724,1742243913882,910.9,8.219e-05,2]
[356311726,1742244042912,500.0,0.00022,120]
[356311727,1742244075824,500.0,0.00022,120]
[356311728,1742244078967,2923.95,8.888e-05,2]
[356311729,1742244101202,1952.0708651,9.699e-05,3]
[356311731,1742244172032,1000.0,8.888e-05,2]
[356311733,1742244239243,-156.69,9.599e-05,2]
[356311734,1742244248439,-150.62375248,9.599e-05,2]
[356311735,1742244250728,-692.68624752,9.599e-05,2]
[356311736,1742244251807,-150.62375248,9.673e-05,2]
[356311737,1742244251830,-6.06624752,9.69e-05,2]
[356311738,1742244255176,530.46,8.867e-05,2]
[356311739,1742244301147,-208.24,9.69e-05,2]
[356311740,1742244425309,219.23894,0.0001088,4]
[356311741,1742244450090,150.0,9.562e-05,7]
[356311742,1742244457402,300.0,9.2e-05,3]
[356311743,1742244459493,600.0,9.3e-05,3]
[356311744,1742244461578,900.0,9.4e-05,3]
[356311745,1742244463715,1200.0,9.5e-05,3]
[356311746,1742244465812,1600.0,9.6e-05,3]
[356311747,1742244467914,300.0,9.7e-05,3]
[356311748,1742244470007,300.0,9.8e-05,3]
[356311749,1742244472093,300.0,9.9e-05,3]
[356311750,1742244474252,300.0,0.0001,3]
[356311751,1742244503921,250.0,8.871e-05,2]
[356311752,1742244574092,156.69,8.871e-05,2]
[356311755,1742244631883,-291.429,9.598e-05,2]
[356311756,1742244631894,-785.69375248,9.69e-05,2]
[356311757,1742244631904,-1885.1,9.699e-05,2]
[356311758,1742244631914,-278.66276457,9.699e-05,2]
[356311759,1742244631924,-150.0,9.699e-05,2]
[356311760,1742244631934,-240.21440574,9.699e-05,2]
[356311761,1742244631943,-3408.70068409,9.7e-05,2]
[356311762,1742244632044,-595.39054192,9.7e-05,2]
[356311763,1742244632056,-8600.93997825,9.7e-05,2]
[356311764,1742244632068,-758.38503925,9.7e-05,2]
[356311765,1742244632099,-460.41945869,9.7e-05,2]
[356311766,1742244632112,-1612.13791205,9.7e-05,2]
[356311767,1742244632159,-700.0,9.7e-05,2]
[356311768,1742244632171,-387.4749431,9.7e-05,2]
[356311769,1742244632182,-582.86546553,9.7e-05,2]
[356311770,1742244632218,-700.0,9.7e-05,2]
[356311771,1742244632229,-324.5640396,9.7e-05,2]
[356311772,1742244632241,-1400.3000356,9.7e-05,2]
[356311773,1742244632253,-4232.56611195,9.7e-05,2]
[356311774,1742244632283,-334.50747262,9.7e-05,2]
[356311775,1742244632299,-255.38201788,9.7e-05,2]
[356311776,1742244632341,-322.9200006,9.7e-05,2]
[356311779,1742244632353,-5420.41289666,9.7e-05,2]
[356312297,1742244637775,-500.0,9.7e-05,2]
[356312702,1742244641720,-872.47731777,9.7e-05,2]
[356312979,1742244644486,-152.9489,9.6e-05,2]
[356312980,1742244644495,-239.34600377,9.7e-05,2]
[356313134,1742244646026,-4713.62272421,9.7e-05,2]
[356313151,1742244646193,-2943.59728723,9.7e-05,2]
[356313153,1742244646206,-15417.17856913,9.7e-05,2]
[356314633,1742244664121,768.87,8.885e-05,2]
[356314875,1742244685519,170.4,9.139e-05,2]
[356314876,1742244716679,151.031806,0.00022,120]
[356314877,1742244800162,-157.0,9.6e-05,2]
[356314878,1742244822246,-340.7794,9.6e-05,2]
[356314879,1742244824792,-150.0,9.6e-05,2]
[356314880,1742244838635,-443.31,9.6e-05,2]
[356314881,1742244997815,348.67,8.86e-05,2]
[356314882,1742245060468,932.45,8.219e-05,2]
[356314883,1742245098051,277.95,8.858e-05,2]
[356314884,1742245110934,761.772,9.506e-05,2]
[356314885,1742245154233,-300.0,9.599e-05,2]
[356314886,1742245154257,-200.0,9.599e-05,2]
[356314889,1742245200936,-50.0,9.599e-05,2]
[356314890,1742245200962,-100.0,9.599e-05,2]
[356314891,1742245212668,1000.0,8.855e-05,2]
[356314892,1742245228114,-150.0,9.599e-05,2]
[356314893,1742245228140,-100.0,9.599e-05,2]
[356314894,1742245229749,-200.0,9.599e-05,2]
[356314895,1742245230771,-250.0,9.599e-05,2]
[356314896,1742245232564,-241.8265,9.599e-05,2]
[356314897,1742245232588,-272.3735,9.599e-05,2]
[356314898,1742245286452,-227.6265,9.599e-05,2]
[356314899,1742245286475,-5.48872407,9.6e-05,2]
[356314900,1742245327671,-29.73267593,9.6e-05,2]
[356314901,1742245327696,-270.26732407,9.6e-05,2]
[356314902,1742245331411,-311.0859924,9.6e-05,2]
[356314903,1742245345614,-300.0,9.6e-05,2]
[356314904,1742245350935,-200.0,9.6e-05,2]
[356314905,1742245356194,-151.0,9.6e-05,2]
[356314906,1742245372518,-215.42,9.6e-05,2]
[356314907,1742245404404,-150.0,9.599e-05,2]
[356314908,1742245404427,-21.0,9.6e-05,2]
[356314909,1742245417482,-150.0,9.6e-05,2]
[356314910,1742245442213,-200.0,9.6e-05,2]
[356314911,1742245462482,-201.0,9.6e-05,2]
[356314912,1742245469182,-202.07065786,9.6e-05,2]
[356314913,1742245475147,-166.342,9.6e-05,2]
[356314914,1742245481178,-248.88310112,9.6e-05,2]
[356314915,1742245481242,150.0,9.562e-05,7]
[356314916,1742245503591,23900.0,8.857e-05,2]
[356314918,1742245513626,-200.0,9.6e-05,2]
[356314920,1742245584884,-150.0,9.599e-05,2]
[356314921,1742245584908,-1.97251927,9.6e-05,2]
[356314922,1742245587619,-317.2,9.6e-05,2]
[356314923,1742245588751,-234.13607008,9.6e-05,2]
[356314925,1742245638422,-275.5169924,9.6e-05,2]
[356314926,1742245644649,156.08,8.856e-05,2]
[356314928,1742245742363,-150.0,9.599e-05,2]
[356314930,1742245754982,488.35,8.863e-05,2]
[356314931,1742245755120,488.35,8.887e-05,2]
[356314932,1742245755314,488.35,8.91e-05,2]
[356314933,1742245755530,488.35,8.933e-05,2]
[356314934,1742245755933,488.35,8.957e-05,2]
[356314935,1742245756158,488.35,8.98e-05,2]
[356314936,1742245756353,488.35,9.003e-05,2]
[356314937,1742245756589,488.35,9.027e-05,2]
[356314938,1742245757043,488.35,9.05e-05,2]